{"text_format":"1","workbook":"xlsx","n_sheets":3,"sheets":["Guía","Autoevaluación","Resultados"],"not_rendered":{"charts":0,"images":2,"macros":1,"external_links":0,"defined_names":1,"comments":0,"pivot_tables":0},"unopened":[],"bounds":{"document_bytes":16777216,"sheet_cells":100000,"rows_first":2000,"rows_last":500,"rows_between":2000,"halvings":0,"cell_chars":16384,"cell_head_chars":4096},"cells_cut":0,"cells_raw":0,"read":"whole","date_system":"1900"}

{"sheet":"Guía","index":0,"n_rows":19,"n_cols":1,"rows_kept":19,"cut":false,"hidden":false,"merged":[]}
["Guía de uso"]
["Esta es una autoevalucación para ser completada por los empleados, líderes, supervisores, etc. "]
["El método es muy sencillo:"]
["Seleccionar el botón que considere se ajusta a su realidad…"]
[]
[]
[]
[]
[]
[]
[]
[]
[]
["La macro asignará 1, 2 o 3 según haya elegido y aparecerá el dato en la columna \"Valor\"."]
["Luego, una función multiplicará el valor por 1, 2 o 3 según corresponda."]
["De allí que el resultado aparecerá ponderado en la columna \"Valor ponderado\"."]
["El espiritu del ejercicio es premiar la cultura segura de la organización."]
["Recuerde que este es solo un ejercicio que servirá como guía o fuente de inspiración para implementar mejoras en el sistema."]
["Puedee realizarlo On Line y que cada empleado le remita el archivo completado."]

{"sheet":"Autoevaluación","index":1,"n_rows":22,"n_cols":7,"rows_kept":22,"cut":false,"hidden":false,"merged":[]}
[null,null,"Solo por obligación","Por propia iniciativa","Porque así se hacen las cosas por aquí"]
[null,null,"Casi nunca","A veces","Siempre","Valor","Valor ponderado"]
[1,"Visito los frentes de trabajo ",null,null,null,0,{"$f":"IF(F3=1,1,IF(F3=2,F3*2,F3*3))","v":0}]
[2,"Intervengo ante un acto o condición insegura",null,null,null,0,{"$f":"IF(F4=1,1,IF(F4=2,F4*2,F4*3))","v":0}]
[3,"Comparto mi opinión sobre el manejo de la seguridad con empleados y supervisores",null,null,null,0,0]
[4,"Participo de investigaciones de accidentes",null,null,null,0,0]
[5,"Lidero investigaciones de accidentes",null,null,null,0,0]
[6,"Participo de las inspecciones de SSA",null,null,null,0,0]
[7,"Participo de las auditorías de SSA",null,null,null,0,0]
[8,"Establezco metas y objetivos de SSA",null,null,null,0,0]
[9,"Comparto las metas y objetivos de SSA con mi grupo",null,null,null,0,0]
[10,"Participo en los simulacros",null,null,null,0,0]
[11,"Mis supervisores lideran en análisis de riesgo de la tarea",null,null,null,0,0]
[12,"Evalúo mi desempeño en SSA",null,null,null,0,0]
[13,"Identifico cuasi-accidentes con alto potencial",null,null,null,1,1]
[14,"Investigo accidentes de alto potencial",null,null,null,0,0]
[15,"Identifico los 5 riesgos principales de mi sector",null,null,null,0,0]
[16,"Establezco acciones para controlar los 5 riesgos principales",null,null,null,0,0]
[17,"Conozco las competencias técnicas de mi personal",null,null,null,0,0]
[18,"Reviso las competencias técnicas de mi personal",null,null,null,0,0]
[19,"Comunica a sus contratistas sus expectativas de SSA",null,null,null,0,0]
[20,"Audito a mis supervisado/contratistas en materia de SSA",null,null,null,0,0]

{"sheet":"Resultados","index":2,"n_rows":14,"n_cols":4,"rows_kept":14,"cut":false,"hidden":false,"merged":[[5,1,6,1]]}
[]
[]
[]
[null,null,null,"Aprendizaje"]
[]
[null,null,"Mejora","41 a 60"]
[]
[null,"Cumplimiento","21 a 40"]
[null,"0 a 20"]
[]
[]
[null,"Valor:",{"$f":"SUM(Autoevaluación!G3:G22)","v":1}]
[]
[null,"Nota: Hay que establecer acciones para cerrar las brechas identificadas."]